bitfinex-derivatives/quotes_SOLF0:USTF0_20260211
["timestamp","ask_amount","ask_price","bid_price","bid_amount"]
[1770826784643,11.1829,80.508,80.456,11.1901]
[1770826785445,10.60463551,80.51,80.462,11.1892]
[1770826785849,10.60463551,80.51,80.463,7.21241266]
[1770826786048,10.60463551,80.51,80.424,7.16289986]
[1770826786347,9.16153688,80.509,80.424,7.16289986]
[1770826786541,9.16153688,80.508,80.424,7.16289986]
[1770826786850,10.60463551,80.49,80.401,7.16289986]
[1770826787152,10.60463551,80.47,80.401,7.16289986]
[1770826787347,10.60463551,80.49,80.419,7.16288145]
[1770826787850,10.60463551,80.49,80.435,11.1929]
[1770826788440,99.22,80.501,80.437,7.26776107]
[1770826788646,10.60463551,80.51,80.437,7.26776107]
[1770826789954,11.1829,80.508,80.451,11.1908]
[1770826790348,11.1829,80.508,80.458,11.1897]
[1770826790654,11.1829,80.508,80.454,7.25367527]
[1770826790951,11.1839,80.501,80.455,11.1902]
[1770826791548,9.13529689,80.531,80.456,7.25357489]
[1770826791848,178.0,80.563,80.416,99.22]
[1770826791849,3.84980486,80.57,80.497,3.84582075]
[1770826792041,3.84980486,80.559,80.497,3.84582075]
[1770826792244,3.84980486,80.539,80.471,3.84582075]
[1770826792649,3.84980486,80.519,80.451,3.84582075]
[1770826792855,10.60463551,80.5,80.432,3.84582075]
[1770826793354,10.60463551,80.51,80.45,3.84582075]
[1770826793552,3.84980486,80.52,80.45,3.84582075]
[1770826793749,10.60463551,80.53,80.45,3.84582075]
[1770826794061,99.2,80.533,80.45,3.84582075]
[1770826794062,10.60463551,80.51,80.45,3.84582075]
[1770826794246,3.84980486,80.529,80.45,3.84582075]
[1770826794446,10.60463551,80.51,80.45,3.84582075]
[1770826794957,3.84980486,80.509,80.45,3.84582075]
[1770826795855,3.84980486,80.509,80.42,10.60463551]
[1770826795856,3.84980486,80.509,80.454,15.03622075]
[1770826796059,10.60463551,80.51,80.455,3.84582075]
[1770826796354,15.03000486,80.527,80.469,11.1882]
[1770826797254,15.03000486,80.527,80.471,11.1879]
[1770826797449,15.03000486,80.527,80.44,10.60463551]
[1770826797450,3.84980486,80.527,80.472,3.84582075]
[1770826797960,10.60463551,80.53,80.472,3.84582075]
[1770826798557,10.60463551,80.55,80.483,3.84582075]
[1770826799257,3.84980486,80.563,80.483,3.84582075]
[1770826799445,11.176,80.558,80.505,11.1832]
[1770826799754,10.60463551,80.56,80.505,11.1832]
[1770826800244,3.84980486,80.559,80.494,11.1847]
[1770826800758,3.84980486,80.539,80.461,3.84582075]
[1770826801346,3.84980486,80.539,80.481,11.1866]
[1770826801659,3.84980486,80.559,80.478,3.84582075]
[1770826801951,3.84980486,80.578,80.508,3.84582075]
[1770826802350,3.84980486,80.596,80.51,3.84582075]
[1770826802559,3.84980486,80.596,80.538,3.84582075]
[1770826803151,10.60463551,80.61,80.558,11.1759]
[1770826803349,3.84980486,80.609,80.538,3.84582075]
[1770826803555,3.84980486,80.589,80.519,3.84582075]
[1770826804760,3.84980486,80.589,80.532,3.84582075]
[1770826804961,3.84980486,80.608,80.532,3.84582075]
[1770826805351,10.60463551,80.64,80.559,3.84582075]
[1770826805555,3.84980486,80.644,80.561,3.84582075]
[1770826806061,3.84980486,80.637,80.546,3.84582075]
[1770826806447,10.60463551,80.62,80.565,11.175]
[1770826806756,3.84980486,80.619,80.544,3.84582075]
[1770826806950,11.1691,80.608,80.546,11.1776]
[1770826807148,3.84980486,80.619,80.546,3.84582075]
[1770826807851,3.84980486,80.639,80.546,3.84582075]
[1770826808452,11.1664,80.627,80.57,15.02012075]
[1770826808853,3.84980486,80.639,80.57,3.84582075]
[1770826809162,11.1676,80.618,80.561,15.02122075]
[1770826809351,3.84980486,80.621,80.54,10.60463551]
[1770826809352,3.84980486,80.639,80.562,3.84582075]
[1770826809549,3.84980486,80.639,80.595,11.1707]
[1770826810258,3.84980486,80.639,80.585,15.01792075]
[1770826810763,10.60463551,80.64,80.586,3.84582075]
[1770826811061,3.84980486,80.639,80.567,3.84582075]
[1770826811264,11.1659,80.631,80.581,11.1727]
[1770826812258,3.84980486,80.639,80.581,11.1727]
[1770826813552,3.84980486,80.626,80.569,11.1743]
[1770826813755,3.84980486,80.626,80.534,22.3585]
[1770826813756,3.84980486,80.619,80.536,3.84582075]
[1770826813951,3.84980486,80.599,80.536,3.84582075]
[1770826814157,11.1718,80.588,80.536,3.84582075]
[1770826814356,10.60463551,80.58,80.503,3.84582075]
[1770826814750,11.1737,80.575,80.523,11.1808]
[1770826814956,10.60463551,80.58,80.503,3.84582075]
[1770826815562,10.60463551,80.58,80.522,11.1808]
[1770826815751,3.84980486,80.579,80.503,3.84582075]
[1770826816357,3.84980486,80.579,80.52,11.1812]
[1770826816561,173.7011,80.627,80.503,3.84582075]
[1770826816562,3.84980486,80.559,80.503,3.84582075]
[1770826817255,11.1764,80.555,80.506,3.84582075]
[1770826817461,10.60463551,80.56,80.506,3.84582075]
[1770826818058,3.84980486,80.549,80.5,11.1839]
[1770826818256,3.84980486,80.549,80.484,3.84582075]
[1770826819166,11.1775,80.547,80.497,11.1844]
[1770826820156,10.60463551,80.56,80.464,113.52]
[1770826820157,11.1761,80.557,80.498,3.84582075]
[1770826820754,10.60463551,80.58,80.537,11.1788]
[1770826821767,10.60463551,80.6,80.526,3.8063916]
[1770826822164,10.60463551,80.6,80.549,3.8063916]
[1770826822461,10.60463551,80.64,80.549,3.8063916]
[1770826822660,10.60463551,80.62,80.549,3.8063916]
[1770826823664,4.16911076,80.619,80.549,3.8063916]
[1770826824068,11.1686,80.611,80.563,11.1752]
[1770826824761,4.16911076,80.619,80.549,3.8063916]
[1770826824962,14.77374627,80.64,80.549,3.8063916]
[1770826825162,14.77374627,80.64,80.54,11.0]
[1770826825163,14.77374627,80.64,80.561,3.8063916]
[1770826825564,14.77374627,80.64,80.599,11.1702]
[1770826825769,4.16911076,80.659,80.599,11.1702]
[1770826826367,11.1641,80.644,80.59,11.1715]
[1770826826674,11.1641,80.644,80.582,3.8063916]
[1770826827467,11.1629,80.653,80.599,11.1702]
[1770826827667,4.16911076,80.659,80.599,11.1702]
[1770826828475,4.16911076,80.659,80.607,11.1691]
[1770826828681,10.60463551,80.66,80.599,4.06110903]
[1770826828980,3.90644654,80.679,80.599,4.06110903]
[1770826829766,11.1598,80.675,80.623,11.1669]
[1770826829975,3.90644654,80.679,80.6,4.06110903]
[1770826830367,331.01114874,80.729,80.58,10.60463551]
[1770826830368,3.90644654,80.695,80.623,4.06110903]
[1770826831870,11.1571,80.694,80.637,11.1649]
[1770826832074,108.42,80.715,80.638,4.06110903]
[1770826832075,3.90644654,80.714,80.638,4.06110903]
[1770826832674,3.90644654,80.714,80.659,4.06110903]
[1770826832973,3.90644654,80.757,80.671,4.06110903]
[1770826833372,11.1517,80.733,80.676,4.06110903]
[1770826833574,3.90644654,80.757,80.676,4.06110903]
[1770826834066,10.60463551,80.76,80.658,4.06110903]
[1770826834067,3.90644654,80.739,80.658,4.06110903]
[1770826834266,3.90644654,80.719,80.658,4.06110903]
[1770826834472,11.1567,80.697,80.638,11.1648]
[1770826835578,3.90644654,80.699,80.646,11.1636]
[1770826835878,3.90644654,80.699,80.631,4.06110903]
[1770826836077,3.90644654,80.722,80.631,4.06110903]
[1770826836380,10.60463551,80.71,80.631,4.06110903]
[1770826836577,14.51108205,80.71,80.631,4.06110903]
[1770826837576,3.90644654,80.709,80.631,4.06110903]
[1770826837786,11.1562,80.701,80.639,11.1647]
[1770826837980,3.90644654,80.7,80.639,11.1647]
[1770826838982,3.90644654,80.7,80.61,10.60463551]
[1770826838983,3.90644654,80.686,80.612,4.06110903]
[1770826839178,10.54014958,80.68,80.612,4.06110903]
[1770826839880,11.1599,80.675,80.623,11.1669]
[1770826840681,11.1609,80.667,80.614,11.1682]
[1770826840885,3.90644654,80.666,80.612,4.06110903]
[1770826841074,98.96,80.691,80.58,10.54014958]
[1770826841075,3.90644654,80.659,80.58,10.54014958]
[1770826841271,11.1655,80.634,80.584,11.1723]
[1770826841476,3.90644654,80.639,80.584,11.1723]
[1770826842580,3.90644654,80.639,80.572,4.06110903]
[1770826842787,3.90644654,80.629,80.554,4.06110903]
[1770826842980,10.54014958,80.62,80.554,4.06110903]
[1770826843180,3.90644654,80.62,80.567,4.06110903]
[1770826843376,10.54014958,80.63,80.567,4.06110903]
[1770826843583,10.54014958,80.67,80.581,4.06110903]
[1770826843783,10.54014958,80.67,80.608,4.06110903]
[1770826843973,3.90644654,80.677,80.608,4.06110903]
[1770826844378,3.90644654,80.677,80.625,11.1666]
[1770826844773,3.90644654,80.677,80.608,4.06110903]
[1770826844978,10.54014958,80.69,80.633,11.1655]
[1770826845282,15.06334654,80.696,80.627,4.06110903]
[1770826845478,3.90644654,80.696,80.627,4.06110903]
[1770826845881,3.90644654,80.687,80.627,4.06110903]
[1770826846082,10.54014958,80.68,80.627,4.06110903]
[1770826846588,3.90644654,80.679,80.621,11.1672]
[1770826846789,11.16,80.674,80.621,11.1672]
[1770826846991,3.90644654,80.679,80.621,11.1672]
[1770826847284,3.90644654,80.679,80.632,11.1656]
[1770826847583,3.90644654,80.697,80.648,11.1633]
[1770826847776,3.90644654,80.716,80.648,4.06110903]
[1770826847977,3.90644654,80.716,80.599,22.3404]
[1770826847978,10.54014958,80.74,80.661,4.06110903]
[1770826848287,3.90644654,80.754,80.698,11.1565]
[1770826848582,11.149,80.753,80.689,4.06110903]
[1770826848789,3.90644654,80.754,80.698,11.1565]
[1770826848992,3.90644654,80.729,80.655,4.06110903]
[1770826849384,15.05884654,80.729,80.664,11.1612]
[1770826849692,3.90644654,80.729,80.655,4.06110903]
[1770826850382,3.90644654,80.749,80.682,11.1587]
[1770826850578,3.90644654,80.749,80.673,4.06110903]
[1770826850890,11.1498,80.747,80.688,11.1579]
[1770826851385,11.1496,80.749,80.673,4.06110903]
[1770826851588,4.01316247,80.739,80.673,4.06110903]
[1770826851987,15.16416247,80.739,80.678,11.1593]
[1770826852290,4.01316247,80.739,80.678,11.1593]
[1770826852985,10.54014958,80.72,80.642,3.94155143]
[1770826853194,22.2939,80.768,80.642,3.94155143]
[1770826853195,10.54014958,80.74,80.642,3.94155143]
[1770826853586,10.54014958,80.74,80.681,11.1588]
[1770826854094,10.54014958,80.74,80.682,3.94155143]
[1770826854281,10.54014958,80.74,80.623,22.3339]
[1770826854282,4.01316247,80.787,80.701,3.94155143]
[1770826854681,10.54014958,80.81,80.721,3.94155143]
[1770826855087,10.54014958,80.81,80.744,3.94155143]
[1770826855390,98.92,80.831,80.744,3.94155143]
[1770826855391,10.54014958,80.83,80.744,3.94155143]
[1770826855596,10.54014958,80.83,80.767,3.94155143]
[1770826855597,4.01316247,80.828,80.767,3.94155143]
[1770826856187,4.01316247,80.826,80.767,3.94155143]
[1770826856382,4.01316247,80.826,80.741,3.94155143]
[1770826856588,10.54014958,80.81,80.741,3.94155143]
[1770826856886,4.01316247,80.809,80.741,3.94155143]
[1770826857094,4.01316247,80.803,80.722,3.94155143]
[1770826857287,4.01316247,80.789,80.722,3.94155143]
[1770826857788,4.01316247,80.789,80.69,10.54014958]
[1770826857789,4.01316247,80.778,80.71,11.1548]
[1770826857984,4.01316247,80.769,80.701,3.94155143]
[1770826858196,4.01316247,80.769,80.681,113.54]
[1770826858197,4.01316247,80.799,80.711,3.94155143]
[1770826858386,10.54014958,80.78,80.724,3.94155143]
[1770826858589,4.01316247,80.779,80.701,3.94155143]
[1770826860094,11.1481,80.768,80.708,11.1563]
[1770826860297,10.54014958,80.78,80.708,3.94155143]
[1770826860495,10.54014958,80.8,80.711,3.94155143]
[1770826860793,10.54014958,80.8,80.742,3.94155143]
[1770826861493,6.62860078,80.837,80.751,3.94155143]
[1770826862001,4.01316247,80.836,80.77,3.94155143]
[1770826862295,7.8e-07,80.837,80.771,3.94155143]
[1770826862497,7.8e-07,80.837,80.803,3.94155143]
[1770826863490,4.01316247,80.9,80.832,3.94155143]
[1770826863693,10.54014958,80.91,80.832,3.94155143]
[1770826863891,4.01316247,80.92,80.841,3.94155143]
[1770826864101,4.01316247,80.889,80.791,3.94155143]
[1770826864297,10.54014958,80.91,80.801,3.94155143]
[1770826864491,11.1287,80.909,80.821,3.94155143]
[1770826864693,11.1287,80.909,80.82,10.54014958]
[1770826864694,10.54014958,80.93,80.841,3.94155143]
[1770826864998,4.01316247,80.929,80.841,3.94155143]
[1770826865297,10.54014958,80.93,80.821,3.94155143]
[1770826865298,10.54014958,80.9,80.821,3.94155143]
[1770826865596,4.01316247,80.909,80.831,3.94155143]
[1770826865791,10.54014958,80.89,80.831,3.94155143]
[1770826866508,10.54014958,80.89,80.832,11.1391]
[1770826866996,4.01316247,80.888,80.818,11.141]
[1770826867696,4.01316247,80.888,80.791,3.94155143]
[1770826867998,4.01316247,80.887,80.791,3.94155143]
[1770826868395,4.01316247,80.887,80.814,3.94155143]
[1770826869500,4.01316247,80.887,80.829,11.1395]
[1770826869798,4.01316247,80.887,80.814,3.94155143]
[1770826870307,11.1337,80.873,80.814,3.94155143]
[1770826870596,4.01316247,80.887,80.814,3.94155143]
[1770826871297,15.14526247,80.884,80.825,11.14]
[1770826871598,4.01316247,80.869,80.791,3.94155143]
[1770826871796,4.01316247,80.867,80.806,11.1427]
[1770826871999,4.01316247,80.867,80.791,3.94155143]
[1770826872503,10.54014958,80.85,80.796,11.1441]
[1770826872696,11.1359,80.856,80.796,11.1441]
[1770826872897,11.1367,80.851,80.796,11.1441]
[1770826873094,10.54014958,80.85,80.796,11.1441]
[1770826873299,4.01316247,80.855,80.805,11.1429]
[1770826873507,10.54014958,80.87,80.791,3.94155143]
[1770826873803,4.01316247,80.869,80.791,3.94155143]
[1770826873990,4.01316247,80.869,80.813,11.1418]
[1770826874707,15.14736247,80.869,80.813,11.1418]
[1770826875009,4.01316247,80.868,80.771,3.94155143]
[1770826875208,10.54014958,80.87,80.771,3.94155143]
[1770826875209,4.01316247,80.839,80.771,3.94155143]
[1770826875404,15.15266247,80.83,80.771,3.94155143]
[1770826875718,98.74,80.859,80.688,173.5852]
[1770826875719,4.01316247,80.819,80.752,3.94155143]
[1770826876307,10.54014958,80.82,80.777,11.1467]
[1770826876498,14.55331205,80.84,80.773,3.94155143]
[1770826876693,10.54014958,80.84,80.773,3.94155143]
[1770826876898,4.01316247,80.839,80.773,3.94155143]
[1770826877597,10.54014958,80.82,80.766,11.1482]
[1770826877798,4.01316247,80.839,80.753,3.94155143]
[1770826877999,10.54014958,80.84,80.753,3.94155143]
[1770826878294,4.01316247,80.858,80.75,10.54014958]
[1770826878295,10.54014958,80.85,80.799,11.1437]
[1770826878605,15.14886247,80.858,80.799,11.1437]
[1770826878803,21.67414958,80.87,80.786,3.94155143]
[1770826879104,4.01316247,80.869,80.786,3.94155143]
[1770826879294,10.54014958,80.83,80.765,3.94155143]
[1770826879804,4.01316247,80.829,80.765,3.94155143]
[1770826879996,10.54014958,80.81,80.745,3.94155143]
[1770826880202,4.01316247,80.809,80.745,3.94155143]
[1770826880502,11.1436,80.801,80.747,11.1509]
[1770826880707,4.01316247,80.809,80.745,3.94155143]
[1770826880901,10.54014958,80.81,80.745,3.94155143]
[1770826881102,21.68244958,80.81,80.755,11.1497]
[1770826881303,10.54014958,80.81,80.745,3.94155143]
[1770826881606,15.13793676,80.829,80.773,11.1473]
[1770826881804,3.99823676,80.829,80.764,3.87958431]
[1770826882001,10.54014958,80.83,80.764,3.87958431]
[1770826882205,10.54014958,80.85,80.799,11.1437]
[1770826883103,10.54014958,80.83,80.758,3.87958431]
[1770826883307,3.99823676,80.829,80.758,3.87958431]
[1770826883494,3.99823676,80.809,80.729,3.87958431]
[1770826883804,10.54014958,80.79,80.729,3.87958431]
[1770826884003,3.99823676,80.807,80.729,3.87958431]
[1770826884400,10.54014958,80.81,80.729,3.87958431]
[1770826884401,3.99823676,80.805,80.729,3.87958431]
[1770826884802,10.54014958,80.79,80.729,3.87958431]
[1770826885104,10.54014958,80.76,80.691,3.87958431]
[1770826885503,10.54014958,80.76,80.701,11.1571]
[1770826885902,3.99823676,80.759,80.691,3.87958431]
[1770826886097,10.54014958,80.74,80.672,3.87958431]
[1770826886406,14.53838634,80.74,80.672,3.87958431]
[1770826886605,15.15033676,80.739,80.674,11.1609]
[1770826886910,3.99823676,80.739,80.672,3.87958431]
[1770826887107,11.1535,80.729,80.672,3.87958431]
[1770826887305,10.54014958,80.76,80.626,22.3353]
[1770826887306,10.54014958,80.72,80.652,4.01204393]
[1770826888104,3.83569842,80.718,80.652,4.01204393]
[1770826889705,3.83569842,80.699,80.629,4.01204393]
[1770826890824,3.83569842,80.699,80.617,11.1688]
[1770826890825,10.54014958,80.68,80.617,11.1688]
[1770826891316,10.54014958,80.66,80.614,4.01204393]
[1770826892204,10.54014958,80.66,80.591,4.01204393]
[1770826892405,10.54014958,80.64,80.571,4.01204393]
[1770826892806,10.54014958,80.62,80.548,4.01204393]
[1770826893403,10.54014958,80.62,80.562,11.1765]
[1770826894116,10.54014958,80.62,80.563,4.01204393]
[1770826894706,10.54014958,80.62,80.564,11.1761]
[1770826895314,3.83569842,80.619,80.553,11.1777]
[1770826895513,3.83569842,80.642,80.554,4.01204393]
[1770826895717,3.83569842,80.639,80.554,4.01204393]
[1770826895908,3.83569842,80.639,80.565,15.18804393]
[1770826896521,3.83569842,80.637,80.565,15.18804393]
[1770826896814,3.83569842,80.619,80.543,4.01204393]
[1770826897017,10.54014958,80.6,80.543,4.01204393]
[1770826897411,3.83569842,80.599,80.538,11.1797]
[1770826897720,10.54014958,80.58,80.523,4.01204393]
[1770826897911,3.83569842,80.579,80.502,4.01204393]
[1770826898224,10.54014958,80.57,80.502,4.01204393]
[1770826898414,10.54014958,80.57,80.505,11.1843]
[1770826898620,10.54014958,80.57,80.506,4.01204393]
[1770826898920,10.572333,80.56,80.506,4.01204393]
[1770826899415,3.83569842,80.576,80.506,4.01204393]
[1770826900116,10.572333,80.58,80.506,4.01204393]
[1770826900321,3.83569842,80.598,80.506,4.01204393]
[1770826901226,15.00739842,80.597,80.533,11.1804]
[1770826901523,3.83569842,80.596,80.533,11.1804]
[1770826901916,3.83569842,80.596,80.542,11.1792]
[1770826902517,3.83569842,80.596,80.551,11.1779]
[1770826902913,3.83569842,80.596,80.525,4.01204393]
[1770826903122,3.83569842,80.579,80.505,4.01204393]
[1770826904427,3.83569842,80.577,80.505,4.01204393]
[1770826905127,10.572333,80.56,80.505,4.01204393]
[1770826905522,10.572333,80.56,80.518,11.1826]
[1770826905921,3.83569842,80.559,80.481,4.01204393]
[1770826906118,3.83569842,80.559,80.508,11.184]
[1770826906323,3.83569842,80.559,80.481,4.01204393]
[1770826907519,3.83569842,80.539,80.457,4.01204393]
[1770826907724,3.83569842,80.519,80.44,4.01204393]
[1770826907920,3.83569842,80.519,80.442,2.16184652]
[1770826908225,3.83569842,80.519,80.44,4.01204393]
[1770826908728,3.83569842,80.519,80.461,11.1904]
[1770826908928,10.572333,80.5,80.44,4.01204393]
[1770826909323,10.572333,80.5,80.459,11.1907]
[1770826909520,15.01819842,80.519,80.44,4.01204393]
[1770826909521,3.83569842,80.519,80.44,4.01204393]
[1770826910026,3.83569842,80.518,80.46,11.1906]
[1770826910222,3.83569842,80.518,80.44,4.01204393]
[1770826910417,3.83569842,80.518,80.458,11.1909]
[1770826910825,3.83569842,80.518,80.44,4.01204393]
[1770826912027,10.572333,80.52,80.441,3.90739565]
[1770826912222,10.572333,80.52,80.465,3.90739565]
[1770826912428,3.98996718,80.537,80.465,3.90739565]
[1770826912936,3.98996718,80.519,80.444,3.90739565]
[1770826914127,11.1842,80.507,80.455,11.1914]
[1770826914329,3.98996718,80.519,80.444,3.90739565]
[1770826914730,10.572333,80.52,80.444,3.90739565]
[1770826914931,3.98996718,80.519,80.444,3.90739565]
[1770826915131,10.572333,80.52,80.444,3.90739565]
[1770826915325,3.98996718,80.519,80.463,3.90739565]
[1770826915734,3.98996718,80.519,80.441,3.90739565]
[1770826916235,3.98996718,80.509,80.461,11.1905]
[1770826916429,10.572333,80.5,80.441,3.90739565]
[1770826917133,11.1853,80.499,80.441,3.90739565]
[1770826917837,10.572333,80.5,80.451,11.1918]
[1770826918730,10.572333,80.52,80.441,3.90739565]
[1770826919834,3.98996718,80.519,80.441,3.90739565]
[1770826920336,3.98996718,80.519,80.461,3.90739565]
[1770826920539,3.98996718,80.519,80.442,3.90739565]
[1770826920744,10.572333,80.5,80.442,3.90739565]
[1770826920940,3.98996718,80.497,80.422,3.90739565]
[1770826921139,10.572333,80.48,80.443,25.14]
[1770826921540,11.1881,80.479,80.443,25.14]
[1770826921740,10.572333,80.48,80.443,25.14]
[1770826921943,15.17556718,80.497,80.446,11.1925]
[1770826922140,3.98996718,80.479,80.403,3.90739565]
[1770826922331,10.572333,80.46,80.403,3.90739565]
[1770826922535,10.572333,80.46,80.391,11.2002]
[1770826922732,10.572333,80.46,80.377,14.08631074]
[1770826923140,10.572333,80.46,80.408,11.1979]
[1770826923141,11.1909,80.459,80.408,11.1979]
[1770826923539,10.572333,80.46,80.398,14.08670216]
[1770826923942,10.572333,80.48,80.398,14.08670216]
[1770826924533,10.572333,80.48,80.435,11.1941]
[1770826924745,10.572333,80.48,80.42,14.06028004]
[1770826925146,99.14,80.496,80.44,11.1934]
[1770826925344,99.14,80.496,80.42,14.06028004]
[1770826925544,10.572333,80.48,80.42,14.06028004]
[1770826925844,10.572333,80.5,80.42,14.06028004]
[1770826927240,10.572333,80.5,80.442,14.0512094]
[1770826927443,10.572333,80.52,80.442,14.0512094]
[1770826927745,11.1848,80.503,80.456,11.1911]
[1770826928049,10.572333,80.52,80.456,11.1911]
[1770826928251,10.572333,80.5,80.447,11.1923]
[1770826928442,10.572333,80.5,80.442,14.0512094]
[1770826928946,111.04,80.537,80.442,14.0512094]
[1770826928947,10.572333,80.52,80.442,14.0512094]
[1770826929350,10.572333,80.5,80.442,14.0512094]
[1770826929845,11.1853,80.499,80.442,14.0512094]
[1770826930347,11.1853,80.499,80.452,11.1917]
[1770826931546,10.572333,80.5,80.442,14.0512094]
[1770826931744,10.572333,80.52,80.442,14.0512094]
[1770826932251,11.1826,80.518,80.473,11.1888]
[1770826932745,99.16,80.539,80.463,13.99140761]
[1770826933447,10.572333,80.52,80.463,13.99140761]
[1770826933652,121.752333,80.54,80.463,13.99140761]
[1770826933842,11.1807,80.533,80.463,13.99140761]
[1770826934049,10.572333,80.54,80.463,13.99140761]
[1770826934249,10.572333,80.56,80.471,13.98805731]
[1770826934850,11.178,80.551,80.491,13.98805731]
[1770826935050,10.572333,80.56,80.491,13.98805731]
[1770826935249,10.572333,80.59,80.491,13.98805731]
[1770826935848,11.1766,80.562,80.491,13.98805731]
[1770826936255,10.572333,80.57,80.491,13.98805731]
[1770826936445,11.1779,80.553,80.498,11.1854]
[1770826936645,10.572333,80.57,80.491,13.98805731]
[1770826937055,11.1744,80.578,80.527,11.1813]
[1770826937550,11.1753,80.571,80.519,11.1825]
[1770826937856,109.78,80.589,80.491,13.95621837]
[1770826938046,10.572333,80.62,80.531,13.95209327]
[1770826939156,11.1698,80.611,80.554,11.1775]
[1770826939448,10.572333,80.62,80.55,13.95222781]
[1770826940255,11.1699,80.61,80.551,11.178]
[1770826940651,11.171,80.602,80.55,25.13032781]
[1770826940958,10.572333,80.62,80.55,25.13032781]
[1770826941149,11.1719,80.595,80.537,11.1798]
[1770826941348,10.572333,80.6,80.511,13.89229321]
[1770826941849,10.572333,80.6,80.529,13.89229321]
[1770826942657,10.572333,80.6,80.541,11.1794]
[1770826943061,10.572333,80.6,80.529,13.89229321]
[1770826943062,21.743633,80.6,80.549,11.1782]
[1770826943553,21.743633,80.6,80.51,10.572333]
[1770826943554,103.6,80.612,80.546,13.89165901]
[1770826944263,10.572333,80.6,80.528,13.89159152]
[1770826944661,10.572333,80.58,80.528,13.89159152]
[1770826945355,10.572333,80.58,80.491,13.89160352]
[1770826945854,10.572333,80.58,80.49,10.572333]
[1770826945855,10.572333,80.58,80.512,13.89160352]
[1770826947550,11.1742,80.579,80.528,11.1811]
[1770826948461,111.2,80.598,80.528,13.88293322]
[1770826948757,199.31814231,80.64,80.491,13.88293322]
[1770826948758,10.572333,80.58,80.491,13.88293322]
[1770826948965,10.572333,80.58,80.517,11.1826]
[1770826949161,10.572333,80.58,80.508,13.88293322]
[1770826949564,10.572333,80.58,80.516,13.88294135]
[1770826949760,111.18,80.597,80.516,13.88294135]
[1770826950662,11.173,80.588,80.533,11.1805]
[1770826950863,11.173,80.588,80.516,13.88294135]
[1770826951866,11.1718,80.596,80.543,13.88924342]
[1770826952165,10.572333,80.62,80.543,13.88924342]
[1770826953068,10.572333,80.6,80.543,11.179]
[1770826953369,10.572333,80.6,80.525,13.88924724]
[1770826954061,11.1747,80.575,80.525,25.07084724]
[1770826954266,11.1747,80.575,80.525,11.1816]
[1770826954469,11.1747,80.575,80.507,13.89173774]
[1770826954470,10.572333,80.58,80.507,13.89173774]
[1770826954663,10.572333,80.56,80.507,25.07573774]
[1770826954864,10.572333,80.58,80.507,13.89173774]
[1770826955466,11.1747,80.576,80.52,11.1823]
[1770826955670,11.1747,80.576,80.507,13.89173774]
[1770826955671,10.572333,80.58,80.507,13.89173774]
[1770826955860,10.572333,80.6,80.507,13.89173774]
[1770826956573,11.1714,80.599,80.545,13.89084507]
[1770826957564,10.572333,80.6,80.521,13.89085433]
[1770826958069,11.1723,80.593,80.521,13.89085433]
[1770826958277,10.572333,80.6,80.521,13.89085433]
[1770826958775,11.1732,80.586,80.542,11.1792]
[1770826960473,11.1732,80.586,80.534,11.1803]
[1770826960671,11.1741,80.58,80.534,11.1803]
[1770826960870,10.56790966,80.59,80.521,13.89085433]
[1770826961176,11.1741,80.58,80.521,13.89085433]
[1770826961968,21.74050966,80.59,80.539,11.1797]
[1770826963070,11.1737,80.583,80.539,11.1797]
[1770826963276,11.1737,80.583,80.532,11.1806]
[1770826963480,10.56790966,80.59,80.532,11.1806]
[1770826964578,10.56790966,80.57,80.504,13.89676298]
[1770826965672,10.56790966,80.59,80.504,13.89676298]
[1770826965976,11.1737,80.582,80.531,11.1808]
[1770826966179,99.08,80.595,80.524,13.92245778]
[1770826967070,99.08,80.595,80.544,11.179]
[1770826967276,10.56790966,80.6,80.544,11.179]
[1770826967874,11.1719,80.596,80.553,11.1777]
[1770826968267,11.1699,80.61,80.56,13.92381662]
[1770826968473,10.56790966,80.62,80.56,13.92381662]
[1770826968875,11.1697,80.611,80.565,11.176]
[1770826969184,10.56790966,80.6,80.531,13.92383141]
[1770826969384,11.1726,80.591,80.55,11.1781]
[1770826969577,11.1726,80.591,80.531,13.92383141]
[1770826969578,10.56790966,80.6,80.531,13.92383141]
[1770826969978,10.56790966,80.6,80.553,13.91010866]
[1770826970885,10.56790966,80.6,80.524,13.91010866]
[1770826971580,10.56790966,80.6,80.542,13.91010239]
[1770826972383,11.1726,80.591,80.55,11.1781]
[1770826972584,10.56790966,80.6,80.542,13.91010239]
[1770826973777,21.73920966,80.6,80.556,11.1773]
[1770826974182,8.96854652,80.617,80.542,13.91010239]